bitfinex/quotes_ETHUSD_20230119
["timestamp","ask_amount","ask_price","bid_price","bid_amount"]
[1674160632701,30.82901983,1557.6,1557.5,0.28428412]
[1674160633372,31.83465685,1557.6,1557.5,0.28428412]
[1674160633583,35.93098073,1557.6,1557.5,0.28428412]
[1674160633825,37.08426134,1557.6,1557.5,0.28428412]
[1674160635098,36.41258073,1557.6,1557.5,0.28428412]
[1674160635301,36.74779307,1557.6,1557.5,0.15022767]
[1674160636060,36.6436971,1557.6,1557.5,0.15022767]
[1674160636206,37.98454646,1557.6,1557.5,0.15022767]
[1674160636418,36.97779307,1557.6,1557.5,0.00022767]
[1674160636686,0.002,1557.4,1557.2,0.07921869]
[1674160636900,34.08198656,1557.3,1557.2,0.07921869]
[1674160637053,36.00128564,1557.3,1557.2,0.07921869]
[1674160637263,39.23128564,1557.3,1557.2,0.07921869]
[1674160637526,39.90255779,1557.3,1557.2,0.07921869]
[1674160637683,38.50276754,1557.3,1557.2,0.07921869]
[1674160638331,38.89210783,1557.3,1557.2,0.07921869]
[1674160638559,1.5,1557.2,1556.7,0.00209811]
[1674160638840,12.84686,1556.8,1556.7,0.00209811]
[1674160639065,12.90959537,1556.8,1556.7,0.00209811]
[1674160640974,13.39139537,1556.8,1556.7,0.00209811]
[1674160641408,12.90959537,1556.8,1556.7,0.00209811]
[1674160645667,17.67234296,1556.8,1556.7,0.00209811]
[1674160645987,17.90234296,1556.8,1556.7,0.00209811]
[1674160646195,18.38414296,1556.8,1556.7,0.00209811]
[1674160647839,17.90234296,1556.8,1556.7,0.00209811]
[1674160648009,19.37534296,1556.8,1556.7,0.00209811]
[1674160648930,19.37534296,1556.8,1556.5,0.08534151]
[1674160649141,1.48,1556.6,1556.5,0.08534151]
[1674160649402,30.46874759,1556.6,1556.5,0.08534151]
[1674160649618,30.76148296,1556.6,1556.5,0.08534151]
[1674160649989,32.24048296,1556.6,1556.5,0.08534151]
[1674160650247,32.72238296,1556.6,1556.5,0.08534151]
[1674160650676,32.24048296,1556.6,1556.5,0.08534151]
[1674160651509,32.01048296,1556.6,1556.5,0.08534151]
[1674160652609,28.71873537,1556.6,1556.5,0.08534151]
[1674160653021,19.33548537,1556.6,1556.5,0.86234151]
[1674160653937,19.33548537,1556.6,1556.5,0.08534151]
[1674160654299,19.33548537,1556.6,1556.5,0.86234151]
[1674160654507,6.48698537,1556.6,1556.5,0.86234151]
[1674160654721,6.48698537,1556.6,1556.5,0.95649753]
[1674160657045,6.48698537,1556.6,1556.5,0.17949753]
[1674160657294,6.48698537,1556.6,1556.5,0.08534151]
[1674160658023,12.91123537,1556.6,1556.5,0.08534151]
[1674160659761,12.91123537,1556.6,1556.5,4.1540891]
[1674160659762,0.06273537,1556.6,1556.5,4.1540891]
[1674160660056,0.066,1556.8,1556.6,1.5]
[1674160660207,0.066,1557.1,1556.7,3.29174759]
[1674160660554,12.84409,1557.2,1556.7,9.71557759]
[1674160660555,6.48802,1557.2,1556.7,9.71557759]
[1674160660764,6.48802,1557.2,1556.8,0.32917476]
[1674160660922,6.48802,1557.2,1556.8,1.80217476]
[1674160661607,6.48802,1557.2,1556.8,0.32917476]
[1674160661768,12.91003,1557.2,1556.7,0.066]
[1674160661978,14.41003,1557.2,1556.6,1.95440891]
[1674160662301,14.41003,1557.2,1556.7,0.19544089]
[1674160662302,19.17977759,1557.2,1556.7,0.19544089]
[1674160662518,19.17977759,1557.2,1556.6,0.41540891]
[1674160662850,19.17977759,1557.2,1556.5,19.42074151]
[1674160662851,19.66147759,1557.2,1556.5,19.42074151]
[1674160663448,2.97,1557.1,1556.5,17.94074151]
[1674160663692,19.26869,1557.0,1556.5,17.94074151]
[1674160663920,19.33469,1557.0,1556.5,17.94074151]
[1674160664233,19.33469,1557.0,1556.6,3.29407415]
[1674160664391,19.33469,1557.0,1556.6,1.79407415]
[1674160665858,19.33469,1557.0,1556.5,17.94074151]
[1674160667869,22.62643759,1557.0,1556.5,17.94074151]
[1674160668318,22.62643759,1557.0,1556.5,8.29334151]
[1674160668487,23.10813759,1557.0,1556.5,8.29334151]
[1674160668711,24.58613759,1557.0,1556.5,8.29334151]
[1674160670773,23.10813759,1557.0,1556.5,8.29334151]
[1674160670969,23.10813759,1557.0,1556.5,9.79334151]
[1674160671136,19.81639,1557.0,1556.5,9.79334151]
[1674160671350,19.33469,1557.0,1556.6,1.5]
[1674160672124,19.33469,1557.0,1556.6,1.27733415]
[1674160672314,19.33469,1557.0,1556.6,2.77733415]
[1674160673992,19.33469,1557.0,1556.6,1.27733415]
[1674160674561,19.33469,1557.0,1556.6,2.77733415]
[1674160674729,19.33469,1557.0,1556.6,1.27733415]
[1674160674922,24.10643759,1557.0,1556.5,8.29334151]
[1674160675133,0.4818,1556.9,1556.5,8.29334151]
[1674160675346,19.27053,1556.8,1556.5,8.29334151]
[1674160675553,19.33653,1556.8,1556.5,0.15134151]
[1674160675762,19.33653,1556.8,1556.5,0.08534151]
[1674160676764,19.33653,1556.8,1556.5,0.07534151]
[1674160680676,12.91302,1556.8,1556.5,0.07534151]
[1674160680804,6.48951,1556.8,1556.5,0.07534151]
[1674160681014,6.48951,1556.8,1556.6,1.5]
[1674160683069,6.48951,1556.8,1556.5,1.54834151]
[1674160683256,6.48951,1556.8,1556.5,2.06018337]
[1674160684304,6.48951,1556.8,1556.5,0.58718337]
[1674160684924,6.48951,1556.8,1556.5,0.07534151]
[1674160685137,13.39482,1556.8,1556.5,0.07534151]
[1674160685450,14.06532057,1556.8,1556.5,0.07534151]
[1674160687287,13.39482,1556.8,1556.5,0.07534151]
[1674160689398,2.15050057,1556.7,1556.5,0.07534151]
[1674160689624,20.96780006,1556.6,1556.5,0.07534151]
[1674160689779,21.03380006,1556.6,1556.5,0.07534151]
[1674160690827,19.33875,1556.6,1556.5,0.07534151]
[1674160691030,0.066,1556.6,1556.5,0.85234151]
[1674160691286,6.48983,1556.8,1556.5,0.85234151]
[1674160691511,0.066,1556.8,1556.5,3.77455716]
[1674160691675,12.91248,1556.9,1556.5,2.65906759]
[1674160691873,6.48911,1556.9,1556.5,1.15906759]
[1674160692088,6.48911,1556.9,1556.6,0.11590676]
[1674160692301,6.48911,1556.9,1556.5,1.88206759]
[1674160692663,0.066,1556.9,1556.8,1.5]
[1674160692830,14.45372508,1557.1,1556.7,1.473]
[1674160693049,14.45372508,1557.1,1556.7,0.58801598]
[1674160693464,14.45370565,1557.1,1556.6,1.478]
[1674160695288,13.97206815,1557.1,1556.6,7.9022]
[1674160695473,13.97206815,1557.1,1556.7,0.79022]
[1674160695703,14.97896353,1557.1,1556.7,0.79022]
[1674160695895,14.97896353,1557.1,1556.6,1.478]
[1674160696084,14.97896353,1557.1,1556.7,1.5]
[1674160696299,0.4817,1557.0,1556.6,1.36419753]
[1674160696508,12.8455,1557.0,1556.7,0.1478]
[1674160696846,12.9115,1557.0,1556.7,0.1478]
[1674160697966,6.4886,1557.0,1556.7,0.1478]
[1674160700067,6.4886,1557.0,1556.5,16.27715759]
[1674160700327,7.15910057,1557.0,1556.5,20.83768503]
[1674160700646,7.15910057,1557.0,1556.6,2.61542853]
[1674160700647,6.4886,1557.0,1556.6,2.61542853]
[1674160700809,6.4886,1557.0,1556.7,0.26154285]
[1674160701427,6.4886,1557.0,1556.7,1.72954285]
[1674160701428,0.066,1557.0,1556.7,1.72954285]
[1674160701693,7.64065057,1557.1,1556.8,1.5]
[1674160701901,0.5477,1557.1,1556.8,3.30295429]
[1674160702121,0.066,1557.2,1556.9,1.473]
[1674160702346,0.002,1557.2,1556.9,1.473]
[1674160702645,13.57956057,1557.3,1557.0,0.1473]
[1674160703325,7.15789057,1557.3,1557.0,0.1473]
[1674160705423,7.54823124,1557.3,1556.8,21.40678188]
[1674160705636,7.15789057,1557.3,1556.8,21.40678188]
[1674160706320,13.57956057,1557.3,1556.8,21.40678188]
[1674160706639,13.96990124,1557.3,1556.8,21.40678188]
[1674160709213,13.96990124,1557.3,1556.8,19.92878188]
[1674160709461,13.96990124,1557.3,1556.8,16.31408]
[1674160709791,16.47679662,1557.3,1556.8,9.8909]
[1674160710111,15.46990124,1557.3,1556.8,9.8909]
[1674160710289,13.96990124,1557.3,1556.8,9.8909]
[1674160710479,6.25774759,1557.2,1556.8,0.066]
[1674160710691,19.26681,1557.1,1556.6,11.5611]
[1674160710905,6.48827,1557.1,1556.6,22.74502759]
[1674160711154,6.48827,1557.1,1556.7,3.77450276]
[1674160711523,6.48827,1557.1,1556.7,8.69833276]
[1674160711788,6.48827,1557.1,1556.7,10.26433276]
[1674160712001,6.48827,1557.1,1556.7,8.76433276]
[1674160712313,6.48827,1557.1,1556.8,0.87643328]
[1674160712900,6.48827,1557.1,1556.8,13.59147087]
[1674160712901,0.066,1557.1,1556.8,13.59147087]
[1674160713111,6.42138,1557.3,1556.9,1.48]
[1674160713112,6.48738,1557.3,1556.9,1.48]
[1674160713332,6.48738,1557.3,1556.9,3.63609009]
[1674160717127,6.48738,1557.3,1556.8,13.77133328]
[1674160717128,14.58615595,1557.3,1556.8,13.77133328]
[1674160717339,2.17050057,1557.2,1556.8,9.8949]
[1674160717566,6.42227,1557.1,1556.8,9.8949]
[1674160717749,6.48827,1557.1,1556.8,0.066]
[1674160718120,12.91054,1557.1,1556.7,3.0]
[1674160718647,13.58104057,1557.1,1556.7,3.0]
[1674160718807,12.91054,1557.1,1556.6,8.5611]
[1674160719016,2.15050057,1557.0,1556.6,0.066]
[1674160719237,2.15050057,1557.0,1556.5,10.05114151]
[1674160719424,19.26966,1556.9,1556.5,10.05114151]
[1674160719633,19.33566,1556.9,1556.5,10.05114151]
[1674160727171,19.33566,1556.9,1556.5,0.14134151]
[1674160727372,19.33566,1556.9,1556.5,0.07534151]
[1674160729519,22.62740759,1556.9,1556.5,0.07534151]
[1674160729730,23.29790816,1556.9,1556.5,0.07534151]
[1674160730374,23.02214205,1556.9,1556.5,0.07534151]
[1674160730585,22.62740759,1556.9,1556.5,0.07534151]
[1674160730838,24.10740759,1556.9,1556.5,0.07534151]
[1674160731005,3.29174759,1556.8,1556.5,0.07534151]
[1674160731219,6.27174759,1556.8,1556.5,0.07534151]
[1674160731450,20.75052,1556.7,1556.5,0.07534151]
[1674160731660,20.81652,1556.7,1556.5,0.07534151]
[1674160732262,20.81293517,1556.7,1556.5,0.07534151]
[1674160733203,19.33393517,1556.7,1556.5,0.07534151]
[1674160736350,19.33393517,1556.7,1556.3,0.09082539]
[1674160736351,14.8454398,1556.4,1556.3,0.86782539]
[1674160736619,14.9114398,1556.4,1556.3,2.29565675]
[1674160736928,14.9114398,1556.4,1556.3,1.51865675]
[1674160737140,14.9114398,1556.4,1556.3,1.20641401]
[1674160737832,14.9114398,1556.4,1556.3,0.09082539]
[1674160739784,21.3365198,1556.4,1556.3,0.09082539]
[1674160741513,27.7615998,1556.4,1556.3,0.09082539]
[1674160741943,29.2415998,1556.4,1556.3,0.09082539]
[1674160743013,27.7615998,1556.4,1556.3,0.09082539]
[1674160747817,32.53134739,1556.4,1556.3,0.09082539]
[1674160748095,33.01324739,1556.4,1556.3,0.09082539]
[1674160749079,28.2434998,1556.4,1556.3,0.09082539]
[1674160749918,27.7615998,1556.4,1556.3,0.09082539]
[1674160750560,28.2434998,1556.4,1556.3,0.09082539]
[1674160751411,29.7134998,1556.4,1556.3,0.09082539]
[1674160751634,33.00524739,1556.4,1556.3,0.09082539]
[1674160759755,33.00212324,1556.4,1556.3,0.09082539]
[1674160760735,33.23212324,1556.4,1556.3,0.09082539]
[1674160760950,32.75022324,1556.4,1556.3,0.09082539]
[1674160761369,34.21822324,1556.4,1556.3,0.09082539]
[1674160763824,32.74822324,1556.4,1556.3,0.09082539]
[1674160764152,27.75847565,1556.4,1556.3,0.09082539]
[1674160767937,21.33339565,1556.4,1556.3,0.86782539]
[1674160768251,21.33339565,1556.4,1556.3,0.96409807]
[1674160769505,21.33339565,1556.4,1556.3,0.18709807]
[1674160770656,14.90831565,1556.4,1556.3,0.96409807]
[1674160770823,14.90831565,1556.4,1556.3,2.42909807]
[1674160771820,14.90831565,1556.4,1556.3,3.92909807]
[1674160772037,14.90831565,1556.4,1556.3,21.18742774]
[1674160772191,14.90831565,1556.4,1556.3,24.25342774]
[1674160773615,15.3447236,1556.4,1556.3,24.25342774]
[1674160774032,15.3447236,1556.4,1556.3,25.72542774]
[1674160774515,15.3447236,1556.4,1556.3,24.22542774]
[1674160774944,15.3447236,1556.4,1556.3,22.75342774]
[1674160776445,15.3447236,1556.4,1556.3,16.32793774]
[1674160777917,15.3447236,1556.4,1556.3,11.92058807]
[1674160778684,15.3447236,1556.4,1556.3,13.03618727]
[1674160779023,15.3447236,1556.4,1556.3,5.49509807]
[1674160779233,15.3447236,1556.4,1556.3,1.62182539]
[1674160779482,15.3447236,1556.4,1556.3,0.09082539]
[1674160781223,21.7698036,1556.4,1556.3,0.09082539]
[1674160781494,31.48663119,1556.4,1556.3,0.09082539]
[1674160781737,33.67853119,1556.4,1556.3,0.09082539]
[1674160782019,32.19853119,1556.4,1556.3,0.09082539]
[1674160783535,28.6767836,1556.4,1556.3,0.09082539]
[1674160784531,28.6767836,1556.4,1556.3,0.08692996]
[1674160788581,22.24811831,1556.4,1556.3,0.08692996]
[1674160788730,15.34113831,1556.4,1556.3,0.86392996]
[1674160789595,15.27513831,1556.4,1556.3,0.86392996]
[1674160789780,15.27513831,1556.4,1556.3,0.08692996]
[1674160790453,21.70021831,1556.4,1556.3,0.08692996]
[1674160791473,28.12529831,1556.4,1556.3,0.08692996]
[1674160792392,28.60719831,1556.4,1556.3,0.08692996]
[1674160792910,28.12529831,1556.4,1556.3,0.08692996]
[1674160793447,28.19129831,1556.4,1556.3,0.08692996]
[1674160794540,15.34113831,1556.4,1556.3,0.08692996]
[1674160794762,28.19129831,1556.4,1556.3,0.08692996]
[1674160795972,28.19129831,1556.4,1556.2,0.08183139]
[1674160799124,31.4830459,1556.4,1556.2,0.08183139]
[1674160802851,16.14272759,1556.3,1556.2,0.08183139]
[1674160803017,16.20672759,1556.3,1556.2,0.08183139]
[1674160803233,16.20872759,1556.3,1556.2,0.08183139]
[1674160805009,16.43872759,1556.3,1556.2,0.08183139]
[1674160806487,12.91698,1556.3,1556.2,0.08183139]
[1674160815629,6.49149,1556.3,1556.2,0.08183139]
[1674160815840,0.066,1556.3,1556.2,2.42583139]
[1674160816091,21.76621831,1556.4,1556.2,2.82072897]
[1674160816309,15.34113831,1556.4,1556.3,1.465]
[1674160817748,15.34113831,1556.4,1556.3,2.965]
[1674160818260,15.34113831,1556.4,1556.3,13.79785391]
[1674160818471,15.34113831,1556.4,1556.3,21.08194626]
[1674160818707,15.34113831,1556.4,1556.3,19.96632994]
[1674160818891,15.34113831,1556.4,1556.3,24.0819186]
[1674160819096,15.34113831,1556.4,1556.3,26.21661922]
[1674160819347,15.34113831,1556.4,1556.3,27.48305673]
[1674160819748,15.33787099,1556.4,1556.3,26.82335611]
[1674160819962,15.33787099,1556.4,1556.3,25.5569186]
[1674160820633,15.33787099,1556.4,1556.3,26.82335611]
[1674160820808,15.33787099,1556.4,1556.3,25.5569186]
[1674160821440,15.33787099,1556.4,1556.3,11.37468101]
[1674160821694,15.33787099,1556.4,1556.3,2.35860235]
[1674160821917,15.33787099,1556.4,1556.3,2.29260235]
[1674160822706,15.33787099,1556.4,1556.2,8.44839897]
[1674160825538,15.33511407,1556.4,1556.2,8.44839897]
[1674160825794,15.33152855,1556.4,1556.2,8.44839897]
[1674160828503,15.33152855,1556.4,1556.3,1.473]
[1674160832297,15.33152855,1556.4,1556.3,7.89849]
[1674160832509,15.33152855,1556.4,1556.3,10.0937449]
[1674160833776,15.32952855,1556.4,1556.3,10.0937449]
[1674160833949,15.33152855,1556.4,1556.3,10.0937449]
[1674160834160,15.33152855,1556.4,1556.3,11.20933234]
[1674160834598,15.33152855,1556.4,1556.3,10.0937449]
[1674160835660,15.33152855,1556.4,1556.3,8.6207449]
[1674160839798,15.33152855,1556.4,1556.3,19.80598249]
[1674160841244,15.33152855,1556.4,1556.3,20.92159013]
[1674160841456,15.33152855,1556.4,1556.3,25.39359013]
[1674160842239,15.33152855,1556.4,1556.3,23.92559013]
[1674160843411,15.33152855,1556.4,1556.3,24.58529075]
[1674160843624,15.33152855,1556.4,1556.3,24.81529075]
[1674160844947,13.54677082,1556.4,1556.3,24.81529075]
[1674160845312,13.54677082,1556.4,1556.3,24.15559013]
[1674160845522,13.54677082,1556.4,1556.3,23.92559013]
[1674160847833,13.54677082,1556.4,1556.3,24.58529075]
[1674160849613,13.54677082,1556.4,1556.3,23.92559013]
[1674160852129,13.54677082,1556.4,1556.3,22.45359013]
[1674160854710,13.54677082,1556.4,1556.3,23.11329075]
[1674160856397,13.54677082,1556.4,1556.3,4.18160764]
[1674160856614,13.54677082,1556.4,1556.3,1.11560764]
[1674160857662,13.54677082,1556.4,1556.2,0.14783139]
[1674160857813,13.54677082,1556.4,1556.2,0.08183139]
[1674160858019,19.97187082,1556.4,1556.2,0.08183139]
[1674160862485,13.54477082,1556.4,1556.2,0.08183139]
[1674160862681,13.54677082,1556.4,1556.2,0.08183139]
[1674160864814,13.54677082,1556.4,1556.2,6.50765139]
[1674160865028,13.54677082,1556.4,1556.2,6.57365139]
[1674160865244,13.54677082,1556.4,1556.2,8.58653503]
[1674160865785,13.54677082,1556.4,1556.2,11.87828262]
[1674160866659,13.54677082,1556.4,1556.3,1.5]
[1674160866913,13.54677082,1556.4,1556.3,2.58488475]
[1674160867233,13.54677082,1556.4,1556.3,7.51037475]
[1674160867548,13.54677082,1556.4,1556.3,9.58121055]
[1674160868593,13.54677082,1556.4,1556.3,8.4963258]
[1674160869284,13.54677082,1556.4,1556.3,9.5818384]
[1674160869967,13.54677082,1556.4,1556.3,16.0073284]
[1674160870392,13.54677082,1556.4,1556.3,9.5818384]
[1674160870891,13.54677082,1556.4,1556.3,2.0708358]
[1674160871086,13.54677082,1556.4,1556.2,11.87807262]
[1674160871483,13.54677082,1556.4,1556.2,18.30397262]
[1674160872273,13.5431853,1556.4,1556.2,18.30397262]
[1674160874508,13.67216812,1556.4,1556.2,18.30397262]
[1674160875150,13.67216812,1556.4,1556.2,12.99934139]
[1674160875489,13.67216812,1556.4,1556.2,0.14783139]
[1674160875639,13.67216812,1556.4,1556.2,0.08183139]
[1674160875843,21.57728812,1556.4,1556.2,0.08183139]
[1674160877809,28.00240812,1556.4,1556.2,0.08183139]
[1674160883977,1.471,1556.3,1556.2,0.08183139]
[1674160884212,14.32198,1556.3,1556.2,0.08183139]
[1674160884441,14.38798,1556.3,1556.2,0.08183139]
[1674160885792,12.91698,1556.3,1556.2,0.08183139]
[1674160887217,6.49149,1556.3,1556.2,0.08183139]
[1674160887468,0.066,1556.3,1556.2,0.08183139]
[1674160887635,24.92752795,1556.4,1556.2,0.08183139]
[1674160892536,18.50240795,1556.4,1556.2,0.24432897]
[1674160892744,18.50240795,1556.4,1556.2,12.69652852]
[1674160892897,18.50240795,1556.4,1556.3,1.08585164]
[1674160893320,18.50240795,1556.4,1556.3,2.58585164]
[1674160893589,18.49873492,1556.4,1556.3,5.34618152]
[1674160893898,18.49873492,1556.4,1556.3,11.83767152]
[1674160894053,18.49873492,1556.4,1556.3,10.33767152]
[1674160894950,18.49873492,1556.4,1556.3,11.83767152]
[1674160895340,18.49873492,1556.4,1556.3,3.91218152]
[1674160895555,18.49873492,1556.4,1556.2,0.31032897]
[1674160895730,18.49873492,1556.4,1556.2,3.24432897]
[1674160897483,18.49673492,1556.4,1556.2,0.08383139]
[1674160897621,18.49873492,1556.4,1556.2,0.08183139]
[1674160903257,24.92390492,1556.4,1556.2,0.08183139]
[1674160903484,31.34907492,1556.4,1556.2,0.08183139]
[1674160903638,32.82007492,1556.4,1556.2,0.08183139]
[1674160907028,33.97247549,1556.4,1556.2,0.08183139]
[1674160907226,33.49057549,1556.4,1556.2,0.08183139]
[1674160908132,2.19229938,1556.3,1556.2,0.08183139]
[1674160908413,17.46017055,1556.3,1556.2,0.08183139]
[1674160908559,25.23217055,1556.3,1556.2,0.08183139]
[1674160909021,24.79727938,1556.3,1556.2,0.08183139]
[1674160909241,23.73223579,1556.3,1556.2,0.08183139]
[1674160909450,23.29727873,1556.3,1556.2,0.08183139]
[1674160909671,22.57098,1556.3,1556.2,0.08183139]
[1674160910692,22.57098,1556.3,1556.2,0.07860243]
[1674160911672,14.86498,1556.3,1556.2,0.07860243]
[1674160912616,13.39898,1556.3,1556.2,0.07860243]
[1674160914606,0.066,1556.3,1556.2,0.94260243]
[1674160914768,18.49873492,1556.4,1556.2,1.04117711]
[1674160917041,18.49873492,1556.4,1556.2,0.17717711]
[1674160920278,18.49873492,1556.4,1556.2,0.07860243]
[1674160925908,18.49873492,1556.4,1556.2,1.55860243]
[1674160926117,18.49873492,1556.4,1556.3,4.06672073]
[1674160926391,18.49873492,1556.4,1556.3,14.44365894]
[1674160926558,18.49873492,1556.4,1556.3,20.93514894]
[1674160926744,18.49873492,1556.4,1556.3,25.16717871]
[1674160926959,18.49873492,1556.4,1556.3,29.50771042]
[1674160927486,0.4818,1556.9,1556.4,4.94784664]
[1674160927693,24.52092057,1557.0,1556.7,1.468]
[1674160927942,7.60087532,1557.0,1556.7,1.468]
[1674160928133,7.15942057,1557.0,1556.6,7.9702]
[1674160928359,6.48892,1557.0,1556.6,10.35649374]
[1674160929120,7.15942057,1557.0,1556.6,10.35649374]
[1674160929268,6.48892,1557.0,1556.6,10.35649374]
[1674160931268,6.48892,1557.0,1556.7,1.03564937]
[1674160933269,6.48892,1557.0,1556.6,13.55649374]
[1674160933500,7.15942057,1557.0,1556.6,12.07649374]
[1674160933724,14.04728268,1557.0,1556.6,3.266]
[1674160933912,17.02628268,1557.0,1556.6,3.2]
[1674160934123,15.52628268,1557.0,1556.6,3.2]
[1674160934391,17.02628268,1557.0,1556.6,3.2]
[1674160934755,15.52628268,1557.0,1556.6,3.2]
[1674160935013,1.5,1556.9,1556.6,3.2]
[1674160935238,6.42343,1556.8,1556.6,3.2]
[1674160935548,6.48943,1556.8,1556.6,3.2]
[1674160941187,12.91286,1556.8,1556.6,3.2]
[1674160941398,5.00174759,1556.7,1556.6,3.2]
[1674160941657,18.39722759,1556.7,1556.6,3.2]
[1674160954030,19.1319619,1556.7,1556.6,2.9]
[1674160956557,18.39722759,1556.7,1556.6,2.9]
[1674160957191,17.91542759,1556.7,1556.6,2.9]
[1674160957397,12.91368,1556.7,1556.6,2.9]
[1674160965543,13.64835358,1556.7,1556.6,2.9]
[1674160967426,12.91368,1556.7,1556.6,2.9]
[1674160968663,13.64851261,1556.7,1556.6,2.9]
[1674160968913,13.98490742,1556.7,1556.6,2.9]
[1674160969236,15.45190742,1556.7,1556.6,2.9]
[1674160969387,15.44832282,1556.7,1556.6,2.9]
[1674160971284,16.1218092,1556.7,1556.6,2.9]
[1674160971805,15.44832282,1556.7,1556.6,2.9]
[1674160972347,20.123134,1556.7,1556.6,2.9]
[1674160972543,21.603134,1556.7,1556.6,2.9]
[1674160972753,22.06862843,1556.7,1556.6,2.9]
[1674160974223,21.603134,1556.7,1556.6,2.9]
[1674160974432,22.06862843,1556.7,1556.6,2.9]
[1674160975710,22.95030061,1556.7,1556.6,2.9]
[1674160975925,23.41565132,1556.7,1556.6,2.9]
[1674160976746,23.39046946,1556.7,1556.6,1.28210977]
[1674160976956,25.40913643,1556.7,1556.6,1.28210977]
[1674160977533,25.40913643,1556.7,1556.3,0.066]
[1674160977534,1.5,1556.6,1556.3,0.066]
[1674160977753,21.75164474,1556.4,1556.2,0.07860243]
[1674160977920,13.71098,1556.3,1556.2,0.07860243]
[1674160978115,13.77698,1556.3,1556.2,0.07860243]
[1674160981059,13.77698,1556.3,1556.2,3.27860243]
[1674160986329,19.50820564,1556.3,1556.2,3.27860243]
[1674160986790,19.99020564,1556.3,1556.2,3.27860243]
[1674160987229,23.42061622,1556.3,1556.2,3.27860243]
[1674160987825,23.36481481,1556.3,1556.2,3.27860243]
[1674160988032,22.93440423,1556.3,1556.2,3.27860243]
[1674160988307,23.34085505,1556.3,1556.2,3.27860243]
[1674160989193,22.93440423,1556.3,1556.2,3.27860243]
[1674160989407,22.45240423,1556.3,1556.2,3.27860243]
[1674160989633,22.85871914,1556.3,1556.2,3.27860243]
[1674160989828,23.34071914,1556.3,1556.2,3.27860243]
[1674160990695,22.93440423,1556.3,1556.2,3.27860243]
[1674160991301,23.3404922,1556.3,1556.2,3.27860243]
[1674160991543,24.35089694,1556.3,1556.2,3.27860243]
[1674160992778,23.3404922,1556.3,1556.2,3.27860243]
[1674160995608,22.93440423,1556.3,1556.2,3.27860243]
[1674160995818,22.26072759,1556.3,1556.2,3.27860243]
[1674160996142,20.06872759,1556.3,1556.2,3.27860243]
[1674160996771,21.54872759,1556.3,1555.7,5.73505479]
[1674160996986,21.54872759,1556.3,1555.5,3.25435325]
[1674160996987,3.29174759,1556.0,1555.5,0.0997648]
[1674160997304,2.15167664,1555.8,1555.5,0.002]
[1674160997658,0.67367664,1555.6,1555.2,0.10205386]
[1674160997806,0.4822,1555.5,1555.2,0.10205386]
[1674160998021,0.23,1555.4,1555.2,5.386e-05]
[1674160998350,3.4822,1555.5,1555.0,1.78453289]
[1674160998585,3.0,1555.5,1555.4,0.96]
[1674160998749,10.066,1555.6,1555.1,1.18440636]
[1674160998750,0.066,1555.6,1555.1,3.23974801]
[1674160998967,1.5,1555.8,1555.5,1.478]
[1674160999309,6.49296,1556.0,1555.5,1.478]
[1674160999310,3.35774759,1556.0,1555.5,1.478]
[1674160999526,3.29174759,1556.0,1555.5,1.478]
[1674160999737,3.29174759,1556.0,1555.6,0.1478]
[1674161000119,3.29174759,1555.9,1555.3,10.505]
[1674161000332,3.29174759,1555.8,1555.3,10.0227]
[1674161000575,3.23,1555.7,1555.6,1.5]
[1674161000791,3.066,1555.8,1555.6,1.5]
[1674161000983,4.972649,1555.9,1555.6,1.5]
[1674161001200,0.23,1555.8,1555.4,8.0888]
[1674161001381,0.23,1555.8,1555.4,9.5888]
[1674161001593,3.52174759,1555.8,1555.4,11.88849475]
[1674161001923,3.0,1555.7,1555.6,3.2]
[1674161003008,3.29174759,1555.7,1555.6,3.2]
[1674161003189,3.52174759,1555.7,1555.6,3.2]
[1674161003378,4.99974759,1555.7,1555.6,3.2]
[1674161003590,8.65668002,1555.7,1555.6,3.2]
[1674161003799,15.20845666,1555.7,1555.6,3.2]
[1674161004022,1.786624,1555.5,1555.2,0.066]
[1674161004272,6.42962,1555.3,1555.0,0.10794444]
[1674161004488,4.77174759,1555.2,1555.0,0.10794444]
[1674161004641,3.52174759,1555.1,1555.0,0.10794444]
[1674161004849,4.99274759,1555.1,1555.0,0.10794444]
[1674161005626,8.64968002,1555.1,1555.0,0.10794444]
[1674161005855,8.71568002,1555.1,1555.0,0.10794444]
[1674161006157,20.81568002,1555.1,1554.8,0.0277485]
[1674161006409,20.81568002,1555.1,1554.7,1.5]
[1674161006410,8.62774759,1554.9,1554.7,1.5]
[1674161006622,3.77414759,1554.8,1554.6,0.09973711]
[1674161006941,0.066,1554.9,1554.6,0.09973711]
[1674161007087,6.43025,1555.2,1554.7,1.48]
[1674161007088,0.066,1555.1,1554.7,1.48]
[1674161007302,6.49625,1555.2,1554.7,1.48]
[1674161007547,9.78799759,1555.2,1554.7,2.98]
[1674161007776,9.78799759,1555.2,1554.8,0.298]
[1674161008095,3.29174759,1555.1,1554.8,0.298]
[1674161008310,9.72231759,1555.1,1554.8,1.798]
[1674161008621,9.78831759,1555.1,1554.8,1.798]
[1674161009432,0.34842878,1555.0,1554.8,1.798]
[1674161009664,9.95302759,1554.9,1554.8,1.5]
[1674161009829,10.01902759,1554.9,1554.8,1.45]
[1674161010181,10.01902759,1554.9,1554.6,17.76441725]
[1674161010402,10.01902759,1554.9,1554.6,9.56163711]
[1674161010403,6.4321,1554.7,1554.6,9.56163711]
[1674161010585,6.4981,1554.7,1554.6,0.11573711]
[1674161010934,6.4981,1554.7,1554.6,1.54973711]
[1674161011306,6.4981,1554.7,1554.6,0.04973711]
[1674161011839,9.78984759,1554.7,1554.6,0.04973711]
[1674161012201,20.93194759,1554.7,1554.6,0.04973711]
[1674161012523,32.03444759,1554.7,1554.6,3.15027]
[1674161012828,0.65693243,1554.6,1554.3,0.066]
[1674161013050,24.36623083,1554.5,1554.2,0.13419796]
[1674161013378,20.78128,1554.3,1554.2,0.13419796]
[1674161013506,29.32962759,1554.3,1554.2,7.96e-06]
[1674161013716,29.98856002,1554.3,1554.2,7.96e-06]
[1674161013946,40.60856002,1554.3,1554.2,7.96e-06]
[1674161014201,26.14162759,1554.3,1554.2,7.96e-06]
[1674161014398,26.37162759,1554.3,1554.2,7.96e-06]
[1674161014764,25.88902759,1554.3,1554.2,7.96e-06]
[1674161015191,25.88902759,1554.3,1553.8,1.45000796]
[1674161015395,6.43467,1554.1,1553.8,1.45000796]
[1674161015614,3.29174759,1554.0,1553.8,1.45000796]
[1674161015819,19.30626,1553.9,1553.8,1.45000796]
[1674161016041,22.66400759,1553.9,1553.7,1.5]